Cogmind - Beta 14 @@@ ROGUE MODE // 2024.09.22 @ 18:52:06 Player: DZKane Result: Destroyed by Y-54 Guardian with Gatling Laser Performance ------------- Evolutions (3) 1500 Regions Visited (13) 2600 Robots Destroyed (185) 925 Value Destroyed (6615) 6615 Prototype IDs (29) 580 Alien Tech Used (0) 0 Bonus (3620) 3620 TOTAL SCORE: 15840 Bonus ------- High Alert Combat Kills 1154 Follower Combat Kills 791 Entered Garrisons 600 Used RIF Installer 1000 Aligned with FarCom 300 Friendly Fire -225 Cogmind --------- Core Integrity 0/700 Matter 257/300 Energy 98/100 System Corruption 12% Temperature Cool (12) Movement Core (50) Location -7/Garrison Parts ------- > --- POWER (1) -------- (None) > --- PROPULSION (4) --- (None) > --- UTILITY (6) ------ Improved Melee Analysis Suite System Shield > --- WEAPON (2) ------- Power Maul (fused) > --- INVENTORY (5) ---- Authchip [Storage] Relay Coupler [NC] (30) Relay Coupler [Specialist] (23) Improved Datajack Remote Datajack Peak State ------------ > --- POWER ------------ Deuterium Engine > --- PROPULSION ------- Cooled Airjet Cooled Airjet Cooled Airjet Cooled Airjet > --- UTILITY ---------- Relay Coupler [Swarmer] Relay Coupler [Sentry] Relay Coupler [Sentry] Relay Coupler [Hunter] Relay Coupler [Heavy] Relay Coupler [Heavy] > --- WEAPON ----------- Plasma Cannon Remote Datajack > --- INVENTORY -------- High-capacity Storage Unit Authchip [Storage] Relay Coupler [Hunter] Improved Datajack [Rating: 60] Favorites ----------- Power Improved Ion Engine Engine Improved Ion Engine Power Core Light Nuclear Core Propulsion Improved Treads Treads Improved Treads Leg Aluminum Leg Wheel Wheel Hover Unit Cooled Airjet Flight Unit Improved Flight Unit Utility Huge Storage Unit Device Cooling System Storage Huge Storage Unit Processor Advanced Visual Processing Unit Hackware Relay Coupler [Sentry] Protection Improved Medium Armor Plating Weapon Plasma Cannon Energy Gun Particle Gun Energy Cannon Plasma Cannon Ballistic Gun Heavy Assault Rifle Ballistic Cannon Improved Light Cannon Launcher EMP Blaster Special Weapon Mining Laser Impact Weapon Powered Hammer Special Melee Weapon Improved Datajack Build | -11 -10 -9 -9 -9 -8 -8 -8 -7 -7 -7 -7 -7 -7 ------- Run | Yrd Mat Mat Min Exi Min Mat Gar Fac Was Fac Gar Fac Gar Slots Evolved 6 | . . 2 . . . 2 . 2 . . . . . Power . | . . . . . . . . . . . . . . Propulsion 2 | . . . . . . 1 . 1 . . . . . Utility 4 | . . 2 . . . 1 . 1 . . . . . Weapon . | . . . . . . . . . . . . . . Parts Attached 209 | 1 19 48 . 2 6 46 49 19 1 2 13 3 . Power 17 | . 3 3 . . . 7 2 . . . 2 . . Engine 15 | . 3 3 . . . 6 2 . . . 1 . . Core 2 | . . . . . . 1 . . . . 1 . . Reactor . | . . . . . . . . . . . . . . Propulsion 44 | . 5 11 . . 4 11 5 7 . . 1 . . Treads 13 | . . 2 . . . 7 3 1 . . . . . Leg 1 | . . . . . . . 1 . . . . . . Wheel 22 | . 5 8 . . 4 4 . 1 . . . . . Hover 7 | . . . . . . . 1 5 . . 1 . . Flight 1 | . . 1 . . . . . . . . . . . Utility 80 | . 4 17 . . . 21 20 9 . 2 5 2 . Device 16 | . 2 3 . . . 7 4 . . . . . . Storage 6 | . 1 2 . . . . 2 . . . 1 . . Processor 5 | . . . . . . 3 1 . . . . 1 . Hackware 20 | . . . . . . . 4 9 . 2 4 1 . Protection 33 | . 1 12 . . . 11 9 . . . . . . Artifact . | . . . . . . . . . . . . . . Weapon 68 | 1 7 17 . 2 2 7 22 3 1 . 5 1 . Energy Gun 5 | . 3 2 . . . . . . . . . . . Energy Cannon 12 | . 2 1 . . . 3 5 1 . . . . . Ballistic Gun 17 | 1 1 9 . . . 1 5 . . . . . . Ballistic Cannon 8 | . . 3 . . 2 1 2 . . . . . . Launcher 2 | . . . . . . 2 . . . . . . . Special Weapon 8 | . 1 2 . 1 . . . 1 1 . 2 . . Impact Weapon 6 | . . . . . . . 5 . . . . 1 . Slashing Weapon . | . . . . . . . . . . . . . . Piercing Weapon . | . . . . . . . . . . . . . . Special Melee Weapon 10 | . . . . 1 . . 5 1 . . 3 . . Unidentified Prototypes 3 | . . 2 . . . . . 1 . . . . . Parts Lost 52 | . 8 9 . . . 14 8 1 . . 12 . . Power 6 | . 2 1 . . . 2 . . . . 1 . . Propulsion 19 | . 3 2 . . . 5 4 1 . . 4 . . Utility 18 | . 1 3 . . . 5 3 . . . 6 . . Weapon 9 | . 2 3 . . . 2 1 . . . 1 . . Highest Loss Streak 7 | . 5 4 . . . 6 2 1 . . 7 . . To Critical Strikes . | . . . . . . . . . . . . . . Average Slot Usage (%) 94 | . 97 99 100 100 100 93 95 90 100 99 89 16 23 Engine 8 | . 13 10 11 11 11 8 9 7 7 7 1 . . Treads 13 | . . . . . . 22 24 18 . . . . . Wheel 8 | . 26 21 22 22 22 4 . . . . . . . Hover 2 | . . . . . . . . 3 30 30 27 . . Device 10 | . 5 11 11 11 11 16 9 4 . . . . . Storage 7 | . 14 11 11 11 11 9 4 6 . . 4 . . Processor 4 | . . . . . . 6 9 6 . . . 6 7 Hackware 5 | . . . . . . . 2 19 46 45 36 2 7 Protection 14 | . 7 21 22 22 22 12 18 6 . . . . . Energy Cannon 4 | . 5 1 . . . 6 5 7 7 7 6 . . Ballistic Gun 2 | . 10 8 . . . . 1 . . . . . . Ballistic Cannon 4 | . . 8 22 . 22 6 1 . . . . . . Special Weapon 1 | . . 2 . 10 . . . 1 7 7 1 . . Impact Weapon 1 | . . . . . . . 4 . . . . 6 7 Special Melee Weapon 1 | . . . . 10 . . 3 5 . . 3 . . Peak Build Rating 60 | 6 12 22 20 20 21 47 39 55 53 58 60 12 12 Average Rating 30 | 6 9 17 20 18 20 35 33 39 52 54 50 9 12 On Entrance 25 | 6 6 11 20 20 20 21 37 38 52 53 58 1 12 Naked Turns 46 | . . . . . . . . . . . 37 9 . Heaviest Build 131 | 11 92 108 108 108 108 123 131 125 19 19 32 3 3 Greatest Support 69 | 20 26 32 26 26 26 69 63 63 32 32 32 3 3 Greatest Overweight (x) 12 | . 9 10 4 4 5 12 12 6 . . 1 . . Average Overweight (x) 1 | . 4 3 4 3 4 3 1 1 . . . . . Largest Inventory Capacity 25 | 8 25 25 25 25 25 25 25 25 5 5 10 5 5 Average Capacity 20 | 8 24 25 25 25 25 25 15 22 5 5 8 5 5 Most Carried 25 | 8 25 25 25 25 25 25 25 25 5 5 10 5 5 Average Carried 19 | 6 20 24 25 24 25 24 14 22 5 4 7 5 5 Final Capacity 25 | 8 25 25 25 25 25 25 25 5 5 5 5 5 5 Final Carried 25 | 8 24 25 25 25 25 25 25 5 5 5 5 5 5 Class Distribution -------------------- 53% | Mutant 26% | Bothacker-Mutant 18% | Scavenger-Mutant Dominant Class ---------------- Mutant | -10/Materials Mutant | -9/Materials Mutant | -9/Mines Mutant | -9/Exiles Mutant | -8/Mines Mutant | -8/Materials Scavenger-Mutant | -8/Garrison Bothacker-Mutant | -7/Factory Bothacker-Mutant | -7/Waste Bothacker-Mutant | -7/Factory Bothacker-Mutant | -7/Garrison Mutant | -7/Factory Mutant | -7/Garrison Resources | -11 -10 -9 -9 -9 -8 -8 -8 -7 -7 -7 -7 -7 -7 ----------- Run | Yrd Mat Mat Min Exi Min Mat Gar Fac Was Fac Gar Fac Gar Matter Collected 4527 | 228 374 1335 . 38 289 892 854 207 40 60 210 . . Remotely 146 | . . . . . . 113 33 . . . . . . Salvage Created 6721 | 93 635 1733 . . 384 1962 1190 217 . 23 484 . . Parts 375 | 6 38 120 . . 14 97 66 15 . 3 16 . . Haulers Intercepted 10 | . 2 5 . . . 3 . . . . . . . Recyclers Shooed 6 | . 1 3 . . 1 . . 1 . . . . . Parts Field Recycled . | . . . . . . . . . . . . . . Retrieved Matter . | . . . . . . . . . . . . . . Parts Self-Destructed . | . . . . . . . . . . . . . . Prevented . | . . . . . . . . . . . . . . Kills | -11 -10 -9 -9 -9 -8 -8 -8 -7 -7 -7 -7 -7 -7 ------- Run | Yrd Mat Mat Min Exi Min Mat Gar Fac Was Fac Gar Fac Gar Combat Hostiles Destroyed 137 | . 11 35 . . 4 40 30 4 . . 13 . . Melee 1 | . . . . . . . 1 . . . . . . Guns 54 | . 7 27 . . . 2 18 . . . . . . Cannons 77 | . 4 8 . . 4 37 9 4 . . 11 . . AOE 3 | . . . . . . 1 . . . . 2 . . Classes Destroyed 16 | 2 5 3 . . 1 2 2 . . . 1 . . Worker 12 | . 1 8 . . 1 1 . . . 1 . . . Builder 4 | . . 2 . . . 2 . . . . . . . Tunneler 2 | 1 . . . . 1 . . . . . . . . Hauler 10 | . 2 5 . . . 3 . . . . . . . Recycler 9 | 1 . 1 . . 4 2 . 1 . . . . . Operator 9 | . 2 3 . . . 4 . . . . . . . Watcher 8 | . 2 5 . . . 1 . . . . . . . Swarmer 27 | . . 15 . . . 4 8 . . . . . . Grunt 61 | . 11 10 . . 3 23 11 1 . . 2 . . Duelist 2 | . . . . . . . 2 . . . . . . Sentry 22 | . . 10 . . . 7 5 . . . . . . Specialist 4 | . . . . . . 2 . . . . 2 . . Hunter 7 | . . . . . 1 3 1 . . . 2 . . Programmer 7 | . . . . . . . 3 3 . . 1 . . Heavy 1 | . . . . . . 1 . . . . . . . Assembled 7 | . . . . . . . . . . . 7 . . Best Kill Streak 8 | 2 3 8 . . 3 7 5 3 . 1 4 . . Combat Bots Only 7 | . 2 7 . . 2 5 5 2 . . 4 . . Max Kills in Single Turn 4 | 1 1 2 . . 1 4 2 1 . 1 1 . . Gunslinging . | . . . . . . . . . . . . . . Exploded 1 | . . . . . . 1 . . . . 1 . . Melee 1 | . . . . . . . 1 . . . . . . Uniques/NPCs Destroyed . | . . . . . . . . . . . . . . Combat | -11 -10 -9 -9 -9 -8 -8 -8 -7 -7 -7 -7 -7 -7 -------- Run | Yrd Mat Mat Min Exi Min Mat Gar Fac Was Fac Gar Fac Gar Hostile Shots Fired 904 | . 78 155 . . 34 322 139 45 . . 113 1 17 Missed 280 | . 13 38 . . 6 122 44 9 . . 41 1 6 Damage Taken 8861 | . 849 1357 . . 358 3010 1440 461 . . 1239 . 147 Core 1610 | . 194 260 . . . 299 150 125 . . 524 . 58 Absorbed by Shields 287 | . . . . . . 197 . 90 . . . . . Redirected to Shielding 211 | . 31 72 . . . 99 9 . . . . . . Ignored by Resistances 122 | . . 12 . . 28 22 60 . . . . . . Regen/Repaired (Parts) 51 | . . 50 . . . . . . 1 . . . . Core Remaining (%) 43 | 100 22 . . . 35 . 18 . . . . . . Volleys Fired 585 | 5 77 142 . . 27 167 44 25 6 11 81 . . Largest 2 | 2 2 2 . . 2 2 2 1 1 1 1 . . Hottest 160 | 60 160 160 . . 78 120 160 80 5 80 80 . . Shots Fired 979 | 10 146 260 . . 54 267 120 25 6 11 80 . . Gun 373 | 10 113 168 . . . 9 73 . . . . . . Cannon 565 | . 28 83 . . 54 254 47 23 . 3 73 . . Launcher 4 | . . . . . . 4 . . . . . . . Special 37 | . 5 9 . . . . . 2 6 8 7 . . Kinetic 528 | 8 59 212 . . 54 100 95 . . . . . . Thermal 403 | 2 87 48 . . . 163 4 23 . 3 73 . . Explosive . | . . . . . . . . . . . . . . Electromagnetic 25 | . . . . . . 4 21 . . . . . . Robot Hit Streak 18 | 3 13 18 . . 6 14 17 6 8 5 7 . . Robot Miss Streak 7 | 2 4 5 . . 2 5 5 3 . 3 7 . . Penetration Max . | . . . . . . . . . . . . . . Secondary Targets 2 | . . 2 . . . . . . . . . . . Max Gunslinging Chain 1 | . . 1 . . . . . . . . . . . Autonomous 73 | . . . . . . 9 64 . . . . . . Shots Hit Robots 668 | 5 94 158 . . 33 174 102 27 6 6 63 . . Core Hits 257 | 3 27 77 . . 14 75 37 7 . 1 16 . . Critical Kills 1 | . . . . . . 1 . . . . . . . Critical Parts Destroyed 1 | . . . . . . . 1 . . . . . . Critical Strikes 15 | . 1 2 . . 1 9 2 . . . . . . Burn 1 | . 1 . . . . . . . . . . . . Meltdown 1 | . . . . . . 1 . . . . . . . Destroy 1 | . . . . . . . 1 . . . . . . Blast 11 | . . 2 . . 1 8 . . . . . . . Corrupt 1 | . . . . . . . 1 . . . . . . Melee Attacks 77 | . . . . . . . 40 15 . . 18 4 . Impact 28 | . . . . . . . 24 . . . . 4 . Slashing . | . . . . . . . . . . . . . . Piercing . | . . . . . . . . . . . . . . Sneak Attacks 26 | . . . . . . . 8 4 . . 14 . . Combat Hostiles 4 | . . . . . . . 4 . . . . . . Follow-up Attacks . | . . . . . . . . . . . . . . Damage Inflicted 14849 | 57 1202 2480 . . 653 6202 2696 406 . 78 1075 . . Guns 4250 | 57 889 1507 . . . 270 1527 . . . . . . Cannons 9820 | . 313 973 . . 653 5319 1017 406 . 78 1061 . . Explosions 613 | . . . . . . 613 . . . . . . . Melee 152 | . . . . . . . 152 . . . . . . Ramming 14 | . . . . . . . . . . . 14 . . Kinetic 8087 | 45 410 2109 . . 653 2822 2048 . . . . . . Thermal 5952 | 12 792 371 . . . 3131 101 406 . 78 1061 . . Explosive . | . . . . . . . . . . . . . . Electromagnetic 644 | . . . . . . 249 395 . . . . . . Impact 152 | . . . . . . . 152 . . . . . . Slashing . | . . . . . . . . . . . . . . Piercing . | . . . . . . . . . . . . . . Highest Corruption 12 | . . 2 2 2 2 . . 1 1 1 12 12 12 Average Corruption 2 | . . 2 2 2 2 . . 1 1 1 3 12 12 Corruption Purged . | . . . . . . . . . . . . . . Corruption Blocked . | . . . . . . . . . . . . . . Effects 86 | . . 36 1 3 7 . . 4 1 4 22 6 2 Message Errors 26 | . . 13 1 . 2 . . 1 . 2 4 1 2 Matter Fused 19 | . . 7 . . 2 . . 1 . . 7 2 . Heat Flow Errors 8 | . . 4 . 2 1 . . . . . . 1 . Energy Discharges 8 | . . 2 . . . . . 1 . 1 3 1 . Parts Rejected 3 | . . 1 . . . . . 1 . . 1 . . Parts Fused 3 | . . 1 . . . . . . . . 1 1 . Data Loss (minor) 12 | . . 5 . . 2 . . . 1 1 3 . . Data Loss (major) 4 | . . 2 . 1 . . . . . . 1 . . Misfires 1 | . . 1 . . . . . . . . . . . Misdirections 1 | . . . . . . . . . . . 1 . . Weapon Failures 1 | . . . . . . . . . . . 1 . . Overload Shots . | . . . . . . . . . . . . . . Overflow Damage 380 | . 15 31 . . . 210 29 17 . . 78 . . Projectiles 361 | . 15 31 . . . 191 29 17 . . 78 . . Explosions 19 | . . . . . . 19 . . . . . . . Melee . | . . . . . . . . . . . . . . Knockbacks 35 | . . 8 . . 6 18 3 . . . . . . Impact 1 | . . . . . . . 1 . . . . . . Kinetic 32 | . . 8 . . 6 16 2 . . . . . . Secondary 2 | . . . . . . 2 . . . . . . . Self-Inflicted Damage 48 | . . . . . . 41 . . . . 7 . . Shots 2 | . . . . . . 2 . . . . . . . Rammed 5 | . . . . . . . . . . . 5 . . Targets Rammed 5 | . . . . . . . . . . . 5 . . Kicked . | . . . . . . . . . . . . . . Crushed . | . . . . . . . . . . . . . . Highest Temperature 252 | . 216 233 . 252 192 96 212 216 . 48 236 125 . Average Temperature 68 | . 67 89 . 114 97 15 71 67 . 25 81 77 . Received Heat Transfer 2954 | . 516 447 . . 126 1033 504 97 . . 219 . 12 Effects 2 | . 2 . . . . . . . . . . . . Interference 2 | . 2 . . . . . . . . . . . . Siege Activations . | . . . . . . . . . . . . . . Robots Corrupted 3 | . . . . . . 1 2 . . . . . . Combat Hostiles 2 | . . . . . . . 2 . . . . . . Parts Fried 4 | . . . . . . . 3 . . . 1 . . Impact Corruptions 1 | . . . . . . 1 . . . . . . . Robots Melted 1 | . . . . . . 1 . . . . . . . Combat Hostiles . | . . . . . . . . . . . . . . Parts Melted 15 | . 1 1 . . . 10 1 1 . . 1 . . Heat Transferred 10019 | 25 1881 817 . . . 4370 200 576 . 150 2000 . . Parts Sabotaged . | . . . . . . . . . . . . . . Parts Stolen . | . . . . . . . . . . . . . . Parts Stripped . | . . . . . . . . . . . . . . Power Chain Reactions 1 | . . . . . . 1 . . . . . . . Alert | -11 -10 -9 -9 -9 -8 -8 -8 -7 -7 -7 -7 -7 -7 ------- Run | Yrd Mat Mat Min Exi Min Mat Gar Fac Was Fac Gar Fac Gar Peak Influence 3634 | 10 142 714 208 . 126 608 3634 1992 720 1197 1361 666 481 Initial 1907 | . 6 . 208 . . 1 390 1907 641 504 837 632 466 Average 896 | 7 57 402 208 . 44 265 1825 1905 674 955 1136 639 467 Maximum Alert Level 5 | . . 3 1 . . 2 5 5 3 4 4 2 2 Low Security (%) 21 | 100 100 16 . . 100 32 . . . . . . . Level 1 18 | . . 25 100 . . 53 . . . . . . . Level 2 20 | . . 56 . . . 13 16 . 61 23 . 100 100 Level 3 9 | . . 1 . . . . 17 . 38 25 41 . . Level 4 8 | . . . . . . . 11 . . 51 58 . . Level 5 21 | . . . . . . . 54 100 . . . . . High Security . | . . . . . . . . . . . . . . Max Security . | . . . . . . . . . . . . . . Squads Dispatched 30 | . 4 6 . . . 7 . 7 . 5 . 1 . Investigation 7 | . 2 1 . . . . . . . 3 . 1 . Extermination 3 | . . . . . . . . 2 . 1 . . . Reinforcement 15 | . 2 5 . . . 7 . 1 . . . . . Assault 4 | . . . . . . . . 4 . . . . . Garrison 1 | . . . . . . . . . . 1 . . . Intercept . | . . . . . . . . . . . . . . Searches Triggered . | . . . . . . . . . . . . . . Construction Impeded 2 | . . . . . . 2 . . . . . . . Haulers Reinforced . | . . . . . . . . . . . . . . Active Scanning Responses . | . . . . . . . . . . . . . . Cargo Convoy Interrupts . | . . . . . . . . . . . . . . Stealth | -11 -10 -9 -9 -9 -8 -8 -8 -7 -7 -7 -7 -7 -7 --------- Run | Yrd Mat Mat Min Exi Min Mat Gar Fac Was Fac Gar Fac Gar Distress Signals 15 | . 3 6 . . . 3 . 1 . 2 . . . Communications Jammed . | . . . . . . . . . . . . . . Distress Signals . | . . . . . . . . . . . . . . Times Spotted 293 | . 21 51 . . 4 67 36 27 4 17 59 2 5 Peak Tracking Total 11 | . 5 7 . . 2 8 5 11 2 7 11 1 7 Tactical Retreats 31 | . 2 . . . . 9 1 3 . 2 13 1 . Traps | -11 -10 -9 -9 -9 -8 -8 -8 -7 -7 -7 -7 -7 -7 ------- Run | Yrd Mat Mat Min Exi Min Mat Gar Fac Was Fac Gar Fac Gar Traps Triggered 19 | . 2 2 . . . . 7 2 . . 4 1 1 Indirectly . | . . . . . . . . . . . . . . Trap Hack Attempts 80 | . . . . . . . 80 . . . . . . Triggered . | . . . . . . . . . . . . . . Disarmed 2 | . . . . . . . 2 . . . . . . Reprogrammed 7 | . . . . . . . 7 . . . . . . Reused 12 | . . . . . . . . . . . 12 . . Traps Extracted . | . . . . . . . . . . . . . . Installed 17 | . . . . . . . . . . . 17 . . Triggered 3 | . . . . . . . . . . . 3 . . Most Traps Carried 4 | . . . . . . . . . . . 4 . . Machines | -11 -10 -9 -9 -9 -8 -8 -8 -7 -7 -7 -7 -7 -7 ---------- Run | Yrd Mat Mat Min Exi Min Mat Gar Fac Was Fac Gar Fac Gar Machines Disabled 20 | . . 1 . . . 5 3 1 . 8 2 . . Max in Single Turn 2 | . . 1 . . . 2 1 1 . . 1 . . Garrison Relay 6 | . . . . . . . 4 . . . 2 . . Machines Repaired . | . . . . . . . . . . . . . . Machines Dismantled . | . . . . . . . . . . . . . . Machines Sabotaged . | . . . . . . . . . . . . . . Overloaded Fab Kills . | . . . . . . . . . . . . . . Hacking | -11 -10 -9 -9 -9 -8 -8 -8 -7 -7 -7 -7 -7 -7 --------- Run | Yrd Mat Mat Min Exi Min Mat Gar Fac Was Fac Gar Fac Gar Machines Accessed 38 | . 7 10 . 2 . 6 4 2 . 5 1 1 . Terminals 26 | . 6 7 . . . 5 4 1 . 2 1 . . Fabricators 2 | . . . . . . . . . . 2 . . . Repair Stations 1 | . . 1 . . . . . . . . . . . Recycling Units 1 | . 1 . . . . . . . . . . . . Scanalyzers 3 | . . 2 . . . . . 1 . . . . . Garrison Access 3 | . . . . . . 1 . . . 1 . 1 . Total Hacks 99 | . 21 34 . 2 . 17 5 5 . 11 2 2 . Successful 47 | . 11 17 . 2 . 8 1 1 . 4 1 2 . Failed 52 | . 10 17 . . . 9 4 4 . 7 1 . . Catastrophic 11 | . 1 2 . . . 2 2 1 . 2 1 . . Database Lockouts . | . . . . . . . . . . . . . . Manual 59 | . 17 21 . 1 . 15 . 4 . 1 . . . Terminals 78 | . 20 26 . . . 16 5 4 . 5 2 . . Fabricators 4 | . . . . . . . . . . 4 . . . Repair Stations 4 | . . 4 . . . . . . . . . . . Recycling Units 1 | . 1 . . . . . . . . . . . . Scanalyzers 5 | . . 4 . . . . . 1 . . . . . Garrison Access 5 | . . . . . . 1 . . . 2 . 2 . Terminal Hacks 17 | . 5 5 . 2 . 3 1 . . . 1 . . Record 1 | . . . . 1 . . . . . . . . . Prototype ID Bank 2 | . . 1 . . . 1 . . . . . . . Open Door 1 | . . . . . . . . . . . 1 . . Terminal Index 3 | . 1 1 . . . 1 . . . . . . . Unreport Threat 3 | . 1 1 . . . 1 . . . . . . . Locate Traps 2 | . 1 1 . . . . . . . . . . . Recall Reinforcements 1 | . 1 . . . . . . . . . . . . Hauler Manifests 1 | . . 1 . . . . . . . . . . . Registered Components 1 | . 1 . . . . . . . . . . . . Garrison Registry 1 | . . . . . . . 1 . . . . . . Derelict Proto ID Bank 1 | . . . . 1 . . . . . . . . . Fabricator Hacks 1 | . . . . . . . . . . 1 . . . Load Schematic 1 | . . . . . . . . . . 1 . . . Repair Station Hacks 2 | . . 2 . . . . . . . . . . . Scan Component 1 | . . 1 . . . . . . . . . . . Repair 1 | . . 1 . . . . . . . . . . . Recycling Unit Hacks . | . . . . . . . . . . . . . . Scanalyzer 3 | . . 3 . . . . . . . . . . . Insert Component 2 | . . 2 . . . . . . . . . . . Analyze 1 | . . 1 . . . . . . . . . . . Garrison Access Hacks 5 | . . . . . . 1 . . . 2 . 2 . Unlock Access 3 | . . . . . . 1 . . . 1 . 1 . Coupler Status 2 | . . . . . . . . . . 1 . 1 . Unauthorized Hacks 19 | . 6 7 . . . 4 . 1 . 1 . . . Terminals 17 | . 5 7 . . . 4 . 1 . . . . . Botnet 5 | . 1 2 . . . 2 . . . . . . . Skim 12 | . 4 5 . . . 2 . 1 . . . . . Fabricators 1 | . . . . . . . . . . 1 . . . Recompile 1 | . . . . . . . . . . 1 . . . Repair Stations . | . . . . . . . . . . . . . . Recycling Units 1 | . 1 . . . . . . . . . . . . Tunnel 1 | . 1 . . . . . . . . . . . . Scanalyzers . | . . . . . . . . . . . . . . Garrison Access . | . . . . . . . . . . . . . . Data Cores Recovered . | . . . . . . . . . . . . . . Used . | . . . . . . . . . . . . . . Hacking Detections 32 | . 6 9 . . . 6 3 2 . 5 . 1 . Full Trace Events 2 | . . . . . . . . . . 2 . . . Feedback Events . | . . . . . . . . . . . . . . Feedback Blocked . | . . . . . . . . . . . . . . Robot Schematics Acquired . | . . . . . . . . . . . . . . Robots Built . | . . . . . . . . . . . . . . Authchips . | . . . . . . . . . . . . . . Time . | . . . . . . . . . . . . . . Total Robot Build Rating . | . . . . . . . . . . . . . . Part Schematics Acquired 1 | . . 1 . . . . . . . . . . . Parts Built . | . . . . . . . . . . . . . . Authchips . | . . . . . . . . . . . . . . Time . | . . . . . . . . . . . . . . Total Part Build Rating . | . . . . . . . . . . . . . . Parts Repaired 1 | . . 1 . . . . . . . . . . . Time 38 | . . 38 . . . . . . . . . . . Parts Recycled . | . . . . . . . . . . . . . . Recycled Matter . | . . . . . . . . . . . . . . Retrieved Matter . | . . . . . . . . . . . . . . Retrieved Components . | . . . . . . . . . . . . . . Parts Scanalyzed 1 | . . 1 . . . . . . . . . . . Part Schematics Acquired 1 | . . 1 . . . . . . . . . . . Parts Damaged . | . . . . . . . . . . . . . . Bothacking | -11 -10 -9 -9 -9 -8 -8 -8 -7 -7 -7 -7 -7 -7 ------------ Run | Yrd Mat Mat Min Exi Min Mat Gar Fac Was Fac Gar Fac Gar Used RIF Installer 2 | . . . . . . . 1 . . . 1 . . Watcher Feeds 1 | . . . . . . . . . . . 1 . . Robots Hacked 34 | . . . . . . . 5 12 6 3 8 . . Non-combat 8 | . . . . . . . . 5 . 3 . . . Combat 26 | . . . . . . . 5 7 6 . 8 . . Robot Hacks Applied 39 | . . . . . . . 7 14 6 3 9 . . parse_system 1 | . . . . . . . . 1 . . . . . find_chute 2 | . . . . . . . . 2 . . . . . ignore_parts 1 | . . . . . . . . . . 1 . . . mark_security 1 | . . . . . . . . . . 1 . . . redirect_shields 1 | . . . . . . . . 1 . . . . . ignore_targets 6 | . . . . . . . . . 6 . . . . scatter_targeting 1 | . . . . . . . . . . . 1 . . disrupt_area 1 | . . . . . . . . 1 . . . . . spike_heat 1 | . . . . . . . . . . . 1 . . reboot_system 1 | . . . . . . . 1 . . . . . . go_dormant 1 | . . . . . . . 1 . . . . . . streamctrl_high 2 | . . . . . . . . . . . 2 . . formatsys_low 2 | . . . . . . . . 2 . . . . . formatsys_high 18 | . . . . . . . 5 7 . 1 5 . . Relay Couplers Released 28 | . . . . . . . 19 . . . 9 . . Machine Destruction 28 | . . . . . . . 19 . . . 9 . . Attached 18 | . . . . . . . 4 8 . 2 4 . . Fabnet Peak Effective % . | . . . . . . . . . . . . . . Robots Rewired 9 | . . . . . . . 3 . . . 6 . . Allies Hacked 1 | . . . . . . . . 1 . . . . . Hacks Repelled . | . . . . . . . . . . . . . . Allies | -11 -10 -9 -9 -9 -8 -8 -8 -7 -7 -7 -7 -7 -7 -------- Run | Yrd Mat Mat Min Exi Min Mat Gar Fac Was Fac Gar Fac Gar Total Allies 50 | . . . . . . . 8 9 19 1 13 . . Largest Group 20 | . . . . . . . 7 9 20 15 7 . . Highest-Rated Group 498 | . . . . . . . 133 191 498 424 172 . . Highest-Rated Ally 40 | . . . . . . . 24 40 40 35 32 . . Total Orders 15 | . . . . . . . 10 2 . 1 2 . . STAY 8 | . . . . . . . 6 1 . . 1 . . ROAM 1 | . . . . . . . . . . 1 . . . FOLLOW 6 | . . . . . . . 4 1 . . 1 . . Ally Attacks 330 | . . . . . . . 14 81 157 26 52 . . Total Damage 11090 | . . . . . . . 224 2075 4815 2784 1192 . . Kills 59 | . . . . . . . . 11 12 24 12 . . Allies Corrupted 2 | . . . . . . . . 2 . . . . . Allies Melted . | . . . . . . . . . . . . . . Intel | -11 -10 -9 -9 -9 -8 -8 -8 -7 -7 -7 -7 -7 -7 ------- Run | Yrd Mat Mat Min Exi Min Mat Gar Fac Was Fac Gar Fac Gar Robot Analysis Total . | . . . . . . . . . . . . . . Derelict Logs Recovered 1 | . . . 1 . . . . . . . . . . Drone Launches . | . . . . . . . . . . . . . . Drone Recoveries . | . . . . . . . . . . . . . . Exploration | -11 -10 -9 -9 -9 -8 -8 -8 -7 -7 -7 -7 -7 -7 ------------- Run | Yrd Mat Mat Min Exi Min Mat Gar Fac Was Fac Gar Fac Gar Turns Passed 18089 | 48 1205 3082 89 470 517 4593 5294 841 216 288 1243 167 36 Spaces Moved 8421 | 26 569 1355 60 344 241 820 2075 333 318 514 1428 296 42 Core 410 | . . . . . . . . . . . 72 296 42 Treads 2625 | . . . . . . 410 1986 229 . . . . . Legs 38 | 26 12 . . . . . . . . . . . . Wheels 3089 | . 557 1355 60 344 241 410 89 33 . . . . . Hover 2259 | . . . . . . . . 71 318 514 1356 . . Flight . | . . . . . . . . . . . . . . Fastest Speed 38 | 120 120 130 150 135 150 116 160 38 38 38 38 50 50 Average Speed 139 | 120 143 146 150 135 150 203 221 200 38 38 39 50 50 Slowest Speed 325 | 120 215 230 150 150 155 320 325 320 38 38 110 50 50 Overloaded Moves . | . . . . . . . . . . . . . . Propulsion Burnouts . | . . . . . . . . . . . . . . Robots Hopped . | . . . . . . . . . . . . . . Cave-ins Triggered . | . . . . . . . . . . . . . . Exploration Rate (%) 49 | 3 95 94 26 70 49 80 91 7 96 11 45 8 14 Regions Visited 13 Branch Regions 3 Pre-discovered Areas 5 | . 1 2 1 1 . . . . . . . . . Known Exits Taken 4 | . . . . . 1 1 . . . 1 . 1 . Unknown Exits Taken 5 | 1 1 1 1 1 . . . . . . . . . Scrap Searched 1 | . . . . . 1 . . . . . . . . Spaces Dug 30 | . 5 7 . . . 11 3 . . . . 4 . Terrain Destroyed 135 | . 5 11 . . 1 83 30 . . . 1 4 . Melee 6 | . . . . . . . 2 . . . . 4 . Projectile 118 | . 5 11 . . 1 72 28 . . . 1 . . AOE 11 | . . . . . . 11 . . . . . . . Terrain Rammed . | . . . . . . . . . . . . . . Walls Destroyed . | . . . . . . . . . . . . . . Machines Disabled . | . . . . . . . . . . . . . . Actions | -11 -10 -9 -9 -9 -8 -8 -8 -7 -7 -7 -7 -7 -7 --------- Run | Yrd Mat Mat Min Exi Min Mat Gar Fac Was Fac Gar Fac Gar Total 13817 | 33 806 2216 59 348 342 3460 2666 483 409 600 2033 305 57 Wait 4012 | . 111 559 . . 65 2363 287 70 85 69 403 . . Move 8410 | 25 568 1354 59 343 240 820 2073 333 317 514 1426 296 42 Hop . | . . . . . . . . . . . . . . Pick Up 184 | 2 25 49 . 1 . 29 44 6 . 2 25 1 . Fast Attach 61 | . 5 12 . . . 8 19 10 . . 4 3 . Attach 64 | . 8 11 . . . 18 18 4 . 2 3 . . Detach 13 | . 1 1 . . . 3 7 1 . . . . . Swap 84 | 1 6 25 . 2 6 20 12 5 1 . 6 . . Drop 184 | . 5 63 . 2 4 32 40 12 . 2 23 1 . Fire 585 | 5 77 142 . . 27 167 44 25 6 11 81 . . Melee 77 | . . . . . . . 40 15 . . 18 4 . Ram 5 | . . . . . . . . . . . 5 . . Kick . | . . . . . . . . . . . . . . Crush . | . . . . . . . . . . . . . . Escape Stasis 39 | . . . . . . . 2 2 . . 20 . 15 Rewire 2 | . . . . . . . . . . . 2 . . Trap 97 | . . . . . . . 80 . . . 17 . . Miscellaneous . | . . . . . . . . . . . . . . Route ------- -11/Scrapyard -10/Materials (discovered 5 exits: *Mat x3 / [*Min x2]) -9/Materials (discovered 5 exits: *Mat x3 / [*Min x2]) -9/Mines -9/Exiles -8/Mines -8/Materials (discovered 6 exits: *Fac x3 / *Sto x2 / Gar) -8/Garrison (discovered 4 exits: *Fac x3 / *Mat) -7/Factory -7/Waste -7/Factory -7/Garrison -7/Factory -7/Garrison History --------- Turn | Location | Event 17 | -11/Scrapyard | Discovered new exit (range 3) 49 | -11/Scrapyard | Entered Materials 305 | -10/Materials | Build established: Mutant 338 | -10/Materials | Discovered new exit (range 8) 511 | -10/Materials | Lost 5 parts (2p1n2w) 581 | -10/Materials | Discovered new exit (range 16) 803 | -10/Materials | Core integrity fell below 50% 931 | -10/Materials | Discovered new exit (range 12) 1037 | -10/Materials | Discovered new exit (range 10) 1060 | -10/Materials | Discovered new exit (range 6) 1254 | -10/Materials | Entered another Materials area 1254 | -9/Materials | Evolved 2 slots: Utility x2 1812 | -9/Materials | Destroyed 7 combat bots 2015 | -9/Materials | Lost 4 parts (1n2u1w) 2090 | -9/Materials | Build established: Scavenger-Mutant 2204 | -9/Materials | Discovered new exit (range 13) 2226 | -9/Materials | Core integrity fell below 50% 2424 | -9/Materials | Build established: Mutant 2537 | -9/Materials | Discovered new exit (range 4) 2739 | -9/Materials | Discovered new exit (range 6) 3188 | -9/Materials | Learned location of Zion (-7) 3224 | -9/Materials | Identified exit to Materials 3266 | -9/Materials | Learned location of Mines (-9) 3326 | -9/Materials | Learned Storage stockpile data 4231 | -9/Materials | Repaired Reflective Plating 4336 | -9/Materials | Entered Mines 4344 | -9/Mines | Met a Derelict bent on vengeance 4371 | -9/Mines | Learned location of Storage (-8) 4417 | -9/Mines | Deemed a non-threat by the Exiles lab entrance 4417 | -9/Mines | Discovered new exit (range 5) 4425 | -9/Mines | Entered Exiles 4462 | -9/Exiles | Met 8R-AWN 4485 | -9/Exiles | Met EX-HEX 4555 | -9/Exiles | Met EX-DEC 4697 | -9/Exiles | Met EX-BIN 4713 | -9/Exiles | Aligned with FarCom system 4715 | -9/Exiles | Given EX-Vault access code 4750 | -9/Exiles | Opened EX-Vault 4759 | -9/Exiles | Found AWS/Gauss 4787 | -9/Exiles | Warned to stay clear of 0b10 Research branches 4877 | -9/Exiles | Discovered new exit (range 14) 4895 | -9/Exiles | Left Exiles lab with AWS/Gauss 4895 | -9/Exiles | Entered Mines 5281 | -8/Mines | Discovered exit to Materials (range 6) 5412 | -8/Mines | Entered Materials 5412 | -8/Materials | Evolved 2 slots: Propulsion x1, Utility x1 5413 | -8/Materials | Identified exit to Storage 5958 | -8/Materials | Lost 4 parts (1p2n1u) 6054 | -8/Materials | Discovered new exit (range 7) 6933 | -8/Materials | Discovered new exit (range 9) 7028 | -8/Materials | Discovered exit to Storage (range 5) 7120 | -8/Materials | Lost 6 parts (1p1n2u2w) 7343 | -8/Materials | Core integrity fell below 50% 7444 | -8/Materials | Discovered new exit (range 19) 10005 | -8/Materials | Identified exit to Garrison 10005 | -8/Materials | Entered Garrison 10085 | -8/Garrison | Build established: Scavenger-Mutant 10117 | -8/Garrison | Triggered checkpoint 10227 | -8/Garrison | Garrison Relay disabled 10743 | -8/Garrison | Triggered checkpoint 11145 | -8/Garrison | Discovered new exit (range 9) 11249 | -8/Garrison | Triggered checkpoint 11361 | -8/Garrison | Triggered checkpoint 11584 | -8/Garrison | Discovered new exit (range 11) 11619 | -8/Garrison | Installed Relay Interface Framework 11711 | -8/Garrison | Triggered checkpoint 11736 | -8/Garrison | Garrison Relay disabled 11907 | -8/Garrison | Garrison Relay disabled 12011 | -8/Garrison | Triggered checkpoint 12335 | -8/Garrison | Triggered checkpoint 12366 | -8/Garrison | Core integrity fell below 20% 12453 | -8/Garrison | Discovered new exit (range 13) 12897 | -8/Garrison | Triggered checkpoint 12897 | -8/Garrison | Garrison Relay disabled 13018 | -8/Garrison | Discovered new exit (range 47) 13018 | -8/Garrison | Discovered new exit (range 80) 13018 | -8/Garrison | Discovered new exit (range 35) 13018 | -8/Garrison | Discovered new exit (range 24) 13354 | -8/Garrison | Build established: Bothacker-Mutant 14782 | -8/Garrison | Identified exit to Factory 15095 | -8/Garrison | Triggered checkpoint 15149 | -8/Garrison | Identified exit to Materials 15299 | -8/Garrison | Entered Factory 15299 | -7/Factory | Accompanied by 7 allies 15299 | -7/Factory | Evolved 2 slots: Propulsion x1, Utility x1 15699 | -7/Factory | First assault squad dispatched 15766 | -7/Factory | P-60 Hacker assimilated allied Defender 3a 15852 | -7/Factory | P-60 Hacker assimilated allied Gladiator 4a 15933 | -7/Factory | Lost 10 allies 16140 | -7/Factory | Sucked down chute 16140 | -7/Factory | Entered Waste 16165 | -7/Waste | 2 allies followed down the chute 16185 | -7/Waste | Spotted C-40 Crusher 16199 | -7/Waste | Spotted C-40 Crusher 16202 | -7/Waste | Spotted C-40 Crusher 16217 | -7/Waste | Spotted C-40 Crusher 16225 | -7/Waste | Spotted C-40 Crusher 16242 | -7/Waste | Warlord forces began an assault 16273 | -7/Waste | Allies destroyed C-40 Crusher 16292 | -7/Waste | Spotted C-40 Crusher 16301 | -7/Waste | Allies destroyed C-40 Crusher 16314 | -7/Waste | Discovered new exit (range 11) 16330 | -7/Waste | Lost 7 allies 16356 | -7/Waste | Entered Factory 16356 | -7/Factory | Accompanied by 14 allies 16450 | -7/Factory | Garrison activated, responded to threat 16519 | -7/Factory | Lost 4 allies 16644 | -7/Factory | Identified exit to Garrison 16644 | -7/Factory | Entered Garrison 16657 | -7/Garrison | Expanded RIF knowledge: Watcher Feeds 16686 | -7/Garrison | Triggered checkpoint 16736 | -7/Garrison | Triggered checkpoint 16766 | -7/Garrison | Discovered new exit (range 11) 16774 | -7/Garrison | Triggered checkpoint 16845 | -7/Garrison | Garrison Relay disabled 16974 | -7/Garrison | Triggered checkpoint 16982 | -7/Garrison | Triggered checkpoint 17027 | -7/Garrison | Lost 6 allies 17312 | -7/Garrison | Garrison Relay disabled 17368 | -7/Garrison | Assembled breached garrison interior 17551 | -7/Garrison | Lost 3 allies 17618 | -7/Garrison | Lost 3 parts (1p1n1w) 17849 | -7/Garrison | Core integrity fell below 50% 17851 | -7/Garrison | System corruption reached 10% 17873 | -7/Garrison | Core integrity fell below 20% 17881 | -7/Garrison | Lost 7 parts (3n4u) 17887 | -7/Garrison | Entered Factory 18054 | -7/Factory | Identified exit to Garrison 18054 | -7/Factory | Entered Garrison 18085 | -7/Garrison | Triggered checkpoint 18090 | -7/Garrison | Destroyed by Y-54 Guardian with Gatling Laser Last Messages --------------- 18060_ Field strength at 88. 18061_ Field strength at 82. 18062_ MX34J2B#84OJ<#INW7L8RZ>NOK 18062_ Field strength at 76. 18063_ Field strength at 70. 18064_ Field strength at 64. 18065_ Field strength at 58. 18066_ Field strength at 52. 18067_ Field strength at 46. 18068_ Field strength at 40. 18069_ Field strength at 34. 18070_ Field strength at 28. 18071_ Field strength at 22. 18072_ Field strength at 16. 18073_ Field strength at 10. 18074_ Field strength at 4. 18075_ Stasis field depleted. 18082_ 9J%TN1ETYZQR&6ZLIMTUKJMLXU/<::|EA|UU,GG 18085_ Beams of light sweep through the air. An alarm sounds. Map ----- +----------------------------------------------------+ | ?????????????????????????# #????????????????????? | | ?????????????????????????# #????????????????????? | | ?????????????????????????# #????????????????????? | | ?????????????????????????# #????????????????????? | | ?????????????????????????# #???????? #??????????? | | ????????????????????????## ##""""## ##?????????? | | ????????????????????????# #?????????? | | ????????????????????????# ???????? | | ????????????????????????# ???????? | | ????????????????????????# ## ## ##????????? | | ??????????????????????### s## ## #?????????? | | ??????????????????????# "?????????? | | ??????????????????????# "?????????? | | ??????????????????????# s ^ "?????????? | | ??????????????????????# "?????????? | | ????????????????????????#Y s## ## #?????????? | | ????????????????????????# ## ## #?????????? | | ????????????????????????# s #?????????? | | ????????????????????????# #?????????? | | ????????????????????????# #?????????? | | ????????????????????????# ##""""## #?????????? | | ????????????????????????# #?l?l???? #?????????? | | ????????????????????????# #????????????????????? | | ????????????????????????# #????????????????????? | | ????????????????????????# #????????????????????? | | ????????????????????????#@ #????????????????????? | | ????????????????????????# #????????????????????? | | ????????????????s???????# #????????????????????? | | ?????????????sss???????? #????????????????????? | | ???????????????????????? #????????????????????? | | ???????????????????????? #????????????????????? | | ????????????????????????#####????????????????????? | | ?????????????????????????????????????????????????? | | ???????????????????g?????????????????????????????? | | ???????????????????g?????????????????????????????? | | ?????????????????????????????????????????????????? | | ?????????????????????????????????????????????????? | | ?????????????????????????????????????????????????? | | ?????????????????????????????????????????????????? | | ?????????????????????????????????????????????????? | | ?????????????????????????????????????????????????? | | ?????????????????????????????????????????????????? | | ?????????????????????????????????????????????????? | | ?????????????????????????????????????????????????? | | ?????????????????????????????????????????????????? | | ?????????????????????????????????????????????????? | | ?????????????????????????????????????????????????? | | ?????????????????????????????????????????????????? | | ?????????????????????????????????????????????????? | | ?????????????????????????????????????????????????? | +----------------------------------------------------+ Best States ------------- Heat Dissipation 53 Coolant Potential 50 Energy Generation 16 Energy Capacity 290 Matter Stores 300 Matter Capacity 300 Sight Range 20 Terrain Scan Density 10 Armor Coverage 450 Resistance: KI 30 Resistance: TH 10 Core Shielding 20 Power Shielding 66 Propulsion Shielding 33 Utility Shielding 66 Weapon Shielding 66 Evasion (%) 57 Targeting Accuracy 6 Melee Accuracy 6 Recoil Reduction 3 Particle Charging 15 Offensive Hacking 10 Defensive Hacking 10 Relay Coupler Types 6 Relay Coupler Value 143 Authchip Count 1 Item Schematics ----------------- Huge Storage Unit | -9/Materials | Scanalyzed Robot Schematics ------------------ None Fabricated ------------ Nothing Alien Tech Used ----------------- None Achievements -------------- None Challenges ------------ None Game ------ Seed NullProjectionTreads Manual? 0 Play Time 02:29:37 Cumulative 183.3 hours Start 2024.09.22 @ 10:02:59 End 2024.09.22 @ 18:52:06 Sessions 3 Manual Loads 0 Difficulty Rogue Special Mode None Game No. 107 Rogue 107 Adventurer 0 Explorer 0 Win Type - Total 6 Types 6/0/0/0/0/0/0/0/0 Lore% 64 Gallery% 67 Achievement% 58 Wizard Run 0 Options --------- Layout 1 ASCII 0 Keyboard 0 Movement Numpad Keybinds 0 Fullscreen 1 Font 24/Smallcaps Map View 50x35 Zoom Use 0% Tactical HUD 1 Map Filters NONE Filters NONE Steam 1 RUN: 3dcefadf-775c-4102-885a-1cfd4b9bfce0